Workbook

Sheet Cost Worksheet
B6: ESTIMATED COST WORKSHEET
B7: What We'll Bill You For | E7: Fall | F7: Spring | G7: Year | H7: This is an estimate of what you will be billed
B8: 15 Hrs/Sem (In-State) | E8: =IF(B8="Click Here to Select Course Load",0,IF(B8="18 Hrs/Sem (In-State)",5370,IF(B8="17 Hrs/Sem (In-State)",5103,IF(B8="16 Hrs/Sem (In-State)",4836,IF(B8="15 Hrs/Sem (In-State)",4569,IF(B8="14 Hrs/Sem (In-State)",4302,IF(B8="13 Hrs/Sem (In-State)",4035,IF(B8="12 Hrs/Sem (In-State)",3768,IF(B8="11 Hrs/Sem (In-State)",3501,IF(B8="10 Hrs/Sem (In-State)",3234,IF(B8="9 Hrs/Sem (In-State)",2967,IF(B8="8 Hrs/Sem (In-State)",2700,IF(B8="7 Hrs/Sem (In-State)",2433,IF(B8="6 Hrs/Sem (In-State)",2069,IF(B8="18 Hrs/Sem (Out-of-State)",10860,IF(B8="17 Hrs/Sem (Out-of-State)",10288,IF(B8="16 Hrs/Sem (Out-of-State)",9716,IF(B8="15 Hrs/Sem (Out-of-State)",9144,IF(B8="14 Hrs/Sem (Out-of-State)",8572,IF(B8="13 Hrs/Sem (Out-of-State)",8000,IF(B8="12 Hrs/Sem (Out-of-State)",7428,IF(B8="11 Hrs/Sem (Out-of-State)",6856,IF(B8="10 Hrs/Sem (Out-of-State)",6284,IF(B8="9 Hrs/Sem (Out-of-State)",5712,IF(B8="8 Hrs/Sem (Out-of-State)",5140,IF(B8="7 Hrs/Sem (Out-of-State)",4568,IF(B8="6 Hrs/Sem (Out-of-State)",3899,IF(B8="",0)))))))))))))))))))))))))))) -> 4569 | F8: =IF(B8="Click Here to Select Course Load",0,IF(B8="18 Hrs/Sem (In-State)",5370,IF(B8="17 Hrs/Sem (In-State)",5103,IF(B8="16 Hrs/Sem (In-State)",4836,IF(B8="15 Hrs/Sem (In-State)",4569,IF(B8="14 Hrs/Sem (In-State)",4302,IF(B8="13 Hrs/Sem (In-State)",4035,IF(B8="12 Hrs/Sem (In-State)",3768,IF(B8="11 Hrs/Sem (In-State)",3501,IF(B8="10 Hrs/Sem (In-State)",3234,IF(B8="9 Hrs/Sem (In-State)",2967,IF(B8="8 Hrs/Sem (In-State)",2700,IF(B8="7 Hrs/Sem (In-State)",2433,IF(B8="6 Hrs/Sem (In-State)",2069,IF(B8="18 Hrs/Sem (Out-of-State)",10860,IF(B8="17 Hrs/Sem (Out-of-State)",10288,IF(B8="16 Hrs/Sem (Out-of-State)",9716,IF(B8="15 Hrs/Sem (Out-of-State)",9144,IF(B8="14 Hrs/Sem (Out-of-State)",8572,IF(B8="13 Hrs/Sem (Out-of-State)",8000,IF(B8="12 Hrs/Sem (Out-of-State)",7428,IF(B8="11 Hrs/Sem (Out-of-State)",6856,IF(B8="10 Hrs/Sem (Out-of-State)",6284,IF(B8="9 Hrs/Sem (Out-of-State)",5712,IF(B8="8 Hrs/Sem (Out-of-State)",5140,IF(B8="7 Hrs/Sem (Out-of-State)",4568,IF(B8="6 Hrs/Sem (Out-of-State)",3899,IF(B8="",0)))))))))))))))))))))))))))) -> 4569 | G8: =SUM(E8:F8) -> 9138
B9: Blair-Shannon 6-Person | E9: =IF(B9 = "Click Here to Select Housing", 0, IF(B9="Freudenberger 2 or 3-Person", 3225, IF(B9="Wells 2-Person", 3225, IF(B9="Wells 4-Person", 3469, IF(B9="Woods 2-Person", 3225, IF(B9="Blair-Shannon 6-Person", 3573, IF(B9="Hammons or Hutchens 2-Person", 4493, IF(B9="Hammons or Hutchens 4-Person", 3922, IF(B9="Kentwood 1-Person", 4166, IF(B9="Kentwood 2 and 3-Person", 3573, IF(B9="Kentwood 2-Person Super Double", 4041, IF(B9="Scholars", 3918, IF(B9="Monroe 1-Person", 3620, IF(B9="Monroe 2-Person", 3513, IF(B9="Monroe 4-Person", 3292, IF(B9="Sunvilla 2-Person", 3094, IF(B9="Sunvilla 3-Person", 2959, IF(B9="Sunvilla 3-Person - Private", 3228, IF(B9="Sunvilla 4-Person", 2825, IF(B9="With Parent(s)", 0)))))))))))))))))))) -> 3573 | F9: =IF(B9 = "Click Here to Select Housing", 0, IF(B9="Freudenberger 2 or 3-Person", 3225, IF(B9="Wells 2-Person", 3225, IF(B9="Wells 4-Person", 3469, IF(B9="Woods 2-Person", 3225, IF(B9="Blair-Shannon 6-Person", 3573, IF(B9="Hammons or Hutchens 2-Person", 4493, IF(B9="Hammons or Hutchens 4-Person", 3922, IF(B9="Kentwood 1-Person", 4166, IF(B9="Kentwood 2 and 3-Person", 3573, IF(B9="Kentwood 2-Person Super Double", 4041, IF(B9="Scholars", 3918, IF(B9="Monroe 1-Person", 3620, IF(B9="Monroe 2-Person", 3513, IF(B9="Monroe 4-Person", 3292, IF(B9="Sunvilla 2-Person", 3094, IF(B9="Sunvilla 3-Person", 2959, IF(B9="Sunvilla 3-Person - Private", 3228, IF(B9="Sunvilla 4-Person", 2825, IF(B9="With Parent(s)", 0)))))))))))))))))))) -> 3573 | G9: 7146
B10: 14-Meals/week | E10: =IF(B10 ="Click Here to Select a Meal Plan", 0, IF(B10 ="Unlimited meal/week", 1349, IF(B10 ="19-Meals/week", 1261, IF(B10 ="14-Meals/week", 1238, IF(B10 ="10-Meals/week", 1222, IF(B10 = "", 0)))))) -> 1238 | F10: =IF(B10 ="Click Here to Select a Meal Plan", 0, IF(B10 ="Unlimited meal/week", 1349, IF(B10 ="19-Meals/week", 1261, IF(B10 ="14-Meals/week", 1238, IF(B10 ="10-Meals/week", 1222, IF(B10 = "", 0)))))) -> 1238 | G10: 2476
B11: Option 3 - $165 (Worth $181) | E11: =IF(B11="Click Here to Select a Dining Dollars Plan", 0, IF(B11="Option 1 - $280 (Worth $307)",280,IF(B11="Option 2 - $215 (Worth $236)",215,IF(B11="Option 3 - $165 (Worth $181)",165,IF(B11="",0))))) -> 165 | F11: =IF(B11="Click Here to Select a Dining Dollars Plan", 0, IF(B11="Option 1 - $280 (Worth $307)",280,IF(B11="Option 2 - $215 (Worth $236)",215,IF(B11="Option 3 - $165 (Worth $181)",165,IF(B11="",0))))) -> 165 | G11: 330
B12: Click Here to Select a Parking Permit | E12: =IF(B12="Click Here to Select a Parking Permit", 0, IF(B12="Commuter Parking",66.5,IF(B12="Residence Hall Parking",109,IF(B12="Motorcycle Parking",12.5,IF(B12="Orange Lot Parking",37,IF(B12="",0)))))) -> 0 | F12: =IF(B12="Click Here to Select a Parking Permit", 0, IF(B12="Commuter Parking",66.5,IF(B12="Residence Hall Parking",109,IF(B12="Motorcycle Parking",12.5,IF(B12="Orange Lot Parking",37,IF(B12="",0)))))) -> 0 | G12: 0
B13: =IF(B8= "Click Here to Select Course Load", "","Books & Supplies") -> Books & Supplies | E13: =IF(B8="18 Hrs/Sem (In-State)",600,IF(B8="17 Hrs/Sem (In-State)",600,IF(B8="16 Hrs/Sem (In-State)",600,IF(B8="15 Hrs/Sem (In-State)",600,IF(B8="14 Hrs/Sem (In-State)",600,IF(B8="13 Hrs/Sem (In-State)",600,IF(B8="12 Hrs/Sem (In-State)",600,IF(B8="11 Hrs/Sem (In-State)",450,IF(B8="10 Hrs/Sem (In-State)",450,IF(B8="9 Hrs/Sem (In-State)",450,IF(B8="8 Hrs/Sem (In-State)",300,IF(B8="7 Hrs/Sem (In-State)",300,IF(B8="6 Hrs/Sem (In-State)",300,IF(B8="18 Hrs/Sem (Out-of-State)",600,IF(B8="17 Hrs/Sem (Out-of-State)",600,IF(B8="16 Hrs/Sem (Out-of-State)",600,IF(B8="15 Hrs/Sem (Out-of-State)",600,IF(B8="14 Hrs/Sem (Out-of-State)",600,IF(B8="13 Hrs/Sem (Out-of-State)",600,IF(B8="12 Hrs/Sem (Out-of-State)",600,IF(B8="11 Hrs/Sem (Out-of-State)",450,IF(B8="10 Hrs/Sem (Out-of-State)",450,IF(B8="9 Hrs/Sem (Out-of-State)",450,IF(B8="8 Hrs/Sem (Out-of-State)",300,IF(B8="7 Hrs/Sem (Out-of-State)",300,IF(B8="6 Hrs/Sem (Out-of-State)",300,IF(B8="Click Here to Select Course Load",0))))))))))))))))))))))))))) -> 600 | F13: =IF(B8="18 Hrs/Sem (In-State)",600,IF(B8="17 Hrs/Sem (In-State)",600,IF(B8="16 Hrs/Sem (In-State)",600,IF(B8="15 Hrs/Sem (In-State)",600,IF(B8="14 Hrs/Sem (In-State)",600,IF(B8="13 Hrs/Sem (In-State)",600,IF(B8="12 Hrs/Sem (In-State)",600,IF(B8="11 Hrs/Sem (In-State)",450,IF(B8="10 Hrs/Sem (In-State)",450,IF(B8="9 Hrs/Sem (In-State)",450,IF(B8="8 Hrs/Sem (In-State)",300,IF(B8="7 Hrs/Sem (In-State)",300,IF(B8="6 Hrs/Sem (In-State)",300,IF(B8="18 Hrs/Sem (Out-of-State)",600,IF(B8="17 Hrs/Sem (Out-of-State)",600,IF(B8="16 Hrs/Sem (Out-of-State)",600,IF(B8="15 Hrs/Sem (Out-of-State)",600,IF(B8="14 Hrs/Sem (Out-of-State)",600,IF(B8="13 Hrs/Sem (Out-of-State)",600,IF(B8="12 Hrs/Sem (Out-of-State)",600,IF(B8="11 Hrs/Sem (Out-of-State)",450,IF(B8="10 Hrs/Sem (Out-of-State)",450,IF(B8="9 Hrs/Sem (Out-of-State)",450,IF(B8="8 Hrs/Sem (Out-of-State)",300,IF(B8="7 Hrs/Sem (Out-of-State)",300,IF(B8="6 Hrs/Sem (Out-of-State)",300,IF(B8="Click Here to Select Course Load",0))))))))))))))))))))))))))) -> 600 | G13: 1200
B14: Your Total Estimated Bill | E14: =SUM(E8:E13) -> 10145 | F14: =SUM(F8:F13) -> 10145 | G14: 20290
B16: Financial Aid Offer | E16: Fall | F16: Spring | G16: Total | I16: This is the financial aid you will use to help pay your bill
B17: Institutional Scholarship | E17: =G17/2 -> 1000 | F17: =G17/2 -> 1000 | G17: 2000
B18: Click Here to Select an Aid Program | E18: =G18/2 -> 0 | F18: =G18/2 -> 0 | H18: Enter your grants, scholarships, and loans here
B19: Click Here to Select an Aid Program | E19: 0 | F19: 0
B20: Click Here to Select an Aid Program | E20: 0 | F20: 0
B21: Click Here to Select an Aid Program | E21: 0 | F21: 0
B22: Click Here to Select an Aid Program | E22: 0 | F22: 0
B23: Click Here to Select an Aid Program | E23: 0 | F23: 0
B24: Click Here to Select an Aid Program | E24: 0 | F24: 0
B25: Click Here to Select an Aid Program | E25: 0 | F25: 0
B26: Your Total Estimated Aid | E26: =SUM(E17:E25) -> 1000 | F26: =SUM(F17:F25) -> 1000 | G26: 2000
C28: Estimated Out-of-Pocket Expenses | E28: Fall | F28: Spring | G28: Total
E29: =SUM(E14-E26) -> 9145 | F29: =SUM(F14-F26) -> 9145 | G29: 18290

Sheet Data Table (hidden)
A1: WORKSHEET PASSWORD: Boomer
B2: Click Here to Select Housing | E2: Click Here to Select an Aid Program
B3: Freudenberger 2 or 3-Person | C3: 3225 | E3: Federal Pell Grant | J3: =IF(ROW(E3:E13)-ROW(E3)=1>COUNT(I3:I13),"",INDEX(E3:E13,SMALL(I3:I13,ROW(INDIRECT("1:"&ROWS(E3:E13)))))) -> 
B4: Wells 2-Person | C4: 3225 | E4: FSEO Grant | J4: =IF(ROW(E4:E14)-ROW(E4)=1>COUNT(I4:I14),"",INDEX(E4:E14,SMALL(I4:I14,ROW(INDIRECT("1:"&ROWS(E4:E14)))))) -> 
B5: Wells 4-Person | C5: 3469 | E5: Access Missouri Grant
B6: Woods 2-Person | C6: 3225 | E6: Bright Flight Scholarship
B7: Blair-Shannon 6-Person | C7: 3573 | E7: Institutional Scholarship
B8: Hammons or Hutchens 2-Person | C8: 4493 | E8: Foundation Scholarship
B9: Hammons or Hutchens 4-Person | C9: 3922 | E9: Outside Scholarship
B10: Kentwood 1-Person | C10: 4166 | E10: Federal Work-Study
B11: Kentwood 2 and 3-Person | C11: 3573 | E11: Direct Subsidized Loan
B12: Kentwood 2-Person Super Double | C12: 4041 | E12: Direct Unsubsidized Loan
B13: Scholars | C13: 3918 | E13: Other
B14: Monroe 1-Person | C14: 3620
B15: Monroe 2-Person | C15: 3513 | E15: Click Here to Select Course Load
B16: Monroe 4-Person | C16: 3292 | E16: 18 Hrs/Sem (In-State) | F16: 18 | G16: =SUM(F16*267) -> 4806 | H16: 564 | I16: =SUM(G16:H16) -> 5370
B17: Sunvilla 2-Person | C17: 3094 | E17: 17 Hrs/Sem (In-State) | F17: 17 | G17: 4539 | H17: 564 | I17: =SUM(G17:H17) -> 5103
B18: Sunvilla 3-Person | C18: 2959 | E18: 16 Hrs/Sem (In-State) | F18: 16 | G18: 4272 | H18: 564 | I18: 4836
B19: Sunvilla 3-Person - Private | C19: 3228 | E19: 15 Hrs/Sem (In-State) | F19: 15 | G19: 4005 | H19: 564 | I19: =SUM(G19:H19) -> 4569
B20: Sunvilla 4-Person | C20: 2825 | E20: 14 Hrs/Sem (In-State) | F20: 14 | G20: 3738 | H20: 564 | I20: 4302
B21: With Parent(s) | C21: 0 | E21: 13 Hrs/Sem (In-State) | F21: 13 | G21: 3471 | H21: 564 | I21: 4035
E22: 12 Hrs/Sem (In-State) | F22: 12 | G22: 3204 | H22: 564 | I22: 3768
B23: Click Here to Select a Meal Plan | E23: 11 Hrs/Sem (In-State) | F23: 11 | G23: 2937 | H23: 564 | I23: 3501
B24: Unlimited meal/week | C24: 1349 | E24: 10 Hrs/Sem (In-State) | F24: 10 | G24: 2670 | H24: 564 | I24: 3234
B25: 19-Meals/week | C25: 1261 | E25: 9 Hrs/Sem (In-State) | F25: 9 | G25: 2403 | H25: 564 | I25: 2967
B26: 14-Meals/week | C26: 1238 | E26: 8 Hrs/Sem (In-State) | F26: 8 | G26: 2136 | H26: 564 | I26: 2700
B27: 10-Meals/week | C27: 1222 | E27: 7 Hrs/Sem (In-State) | F27: 7 | G27: 1869 | H27: 564 | I27: 2433
E28: 6 Hrs/Sem (In-State) | F28: 6 | G28: 1602 | H28: 467 | I28: 2069
B29: Click Here to Select a Dining Dollars Plan | E29: 18 Hrs/Sem (Out-of-State) | F29: 18 | G29: =SUM(F29*572) -> 10296 | H29: 564 | I29: 10860
B30: Option 1 - $280 (Worth $307) | C30: 280 | E30: 17 Hrs/Sem (Out-of-State) | F30: 17 | G30: 9724 | H30: 564 | I30: 10288
B31: Option 2 - $215 (Worth $236) | C31: 215 | E31: 16 Hrs/Sem (Out-of-State) | F31: 16 | G31: 9152 | H31: 564 | I31: 9716
B32: Option 3 - $165 (Worth $181) | C32: 165 | E32: 15 Hrs/Sem (Out-of-State) | F32: 15 | G32: 8580 | H32: 564 | I32: 9144
E33: 14 Hrs/Sem (Out-of-State) | F33: 14 | G33: 8008 | H33: 564 | I33: 8572
B34: Click Here to Select a Parking Permit | E34: 13 Hrs/Sem (Out-of-State) | F34: 13 | G34: 7436 | H34: 564 | I34: 8000
B35: Commuter Parking | C35: 66.5 | E35: 12 Hrs/Sem (Out-of-State) | F35: 12 | G35: 6864 | H35: 564 | I35: 7428
B36: Residence Hall Parking | C36: 109 | E36: 11 Hrs/Sem (Out-of-State) | F36: 11 | G36: 6292 | H36: 564 | I36: 6856
B37: Motorcycle Parking | C37: 12.5 | E37: 10 Hrs/Sem (Out-of-State) | F37: 10 | G37: 5720 | H37: 564 | I37: 6284
B38: Orange Lot Parking | C38: 37 | E38: 9 Hrs/Sem (Out-of-State) | F38: 9 | G38: 5148 | H38: 564 | I38: 5712
E39: 8 Hrs/Sem (Out-of-State) | F39: 8 | G39: 4576 | H39: 564 | I39: 5140
E40: 7 Hrs/Sem (Out-of-State) | F40: 7 | G40: 4004 | H40: 564 | I40: 4568
E41: 6 Hrs/Sem (Out-of-State) | F41: 6 | G41: 3432 | H41: 467 | I41: 3899
